{"text_format":"3","workbook":"xlsx","n_sheets":4,"sheets":["Budžeta kopsavilkums","Ienākumi","Personāla izdevumi","Saimnieciskās darbības izdevumi"],"not_rendered":{"charts":1,"defined_names":11},"read":"whole","date_system":"1900"}

{"sheet":"Budžeta kopsavilkums","index":0,"n_rows":7,"n_cols":4,"rows_kept":7,"merged":[[0,5,1,17]]}
["Uzņēmuma nosaukums",null,null,"Datums"]
["Budžets"]
["Budžeta joma","Plānotie","Faktiskie","Starpība"]
["Ienākumi",{"$f":"Ienākumi[[#Totals],[Plānotie]]","v":{"v":63300,"d":"63,300.00"}},{"$f":"Ienākumi[[#Totals],[Faktiskie]]","v":{"v":57450,"d":"57,450.00"}},{"$f":"IF('Budžeta kopsavilkums'!$A4=\"Ienākumi\",'Budžeta kopsavilkums'!$C4-'Budžeta kopsavilkums'!$B4,'Budžeta kopsavilkums'!$B4-'Budžeta kopsavilkums'!$C4)","v":{"v":-5850,"d":"-5,850.00 "}}]
["Personāla izdevumi",{"$f":"PersonālaIzdevumi[[#Totals],[Plānotie]]","v":{"v":18500,"d":"18,500.00"}},{"$f":"PersonālaIzdevumi[[#Totals],[Faktiskie]]","v":{"v":14100,"d":"14,100.00"}},{"$f":"IF('Budžeta kopsavilkums'!$A5=\"Ienākumi\",'Budžeta kopsavilkums'!$C5-'Budžeta kopsavilkums'!$B5,'Budžeta kopsavilkums'!$B5-'Budžeta kopsavilkums'!$C5)","v":{"v":4400,"d":"4,400.00"}}]
["Saimnieciskās darbības izdevumi",{"$f":"SaimnieciskāsDarbībasIzdevumi[[#Totals],[Plānotie]]","v":{"v":36000,"d":"36,000.00"}},{"$f":"SaimnieciskāsDarbībasIzdevumi[[#Totals],[Faktiskie]]","v":{"v":35530,"d":"35,530.00"}},{"$f":"IF('Budžeta kopsavilkums'!$A6=\"Ienākumi\",'Budžeta kopsavilkums'!$C6-'Budžeta kopsavilkums'!$B6,'Budžeta kopsavilkums'!$B6-'Budžeta kopsavilkums'!$C6)","v":{"v":470,"d":"470.00"}}]
["Bilance (ienākumi mīnus izdevumi)",{"$f":"B4-B5-B6","v":{"v":8800,"d":"8,800.00"}},{"$f":"C4-C5-C6","v":{"v":7820,"d":"7,820.00"}},{"$f":"SUBTOTAL(109,Tabula2[Starpība])","v":{"v":-980,"d":"-980.00 "}}]

{"sheet":"Ienākumi","index":1,"n_rows":7,"n_cols":4,"rows_kept":7}
["Uzņēmuma nosaukums",null,null,"Datums"]
["Ienākumi"]
["Ienākumi","Plānotie","Faktiskie","Starpība"]
["Neto apgrozījums",{"v":60000,"d":"60,000.00"},{"v":54000,"d":"54,000.00"},{"$f":"Ienākumi[[#This Row],[Faktiskie]]-Ienākumi[[#This Row],[Plānotie]]","v":{"v":-6000,"d":"-6,000.00 "}}]
["Procentu ienākumi",{"v":3000,"d":"3,000.00"},{"v":3000,"d":"3,000.00"},{"$f":"Ienākumi[[#This Row],[Faktiskie]]-Ienākumi[[#This Row],[Plānotie]]","v":{"v":0,"d":"0.00"}}]
["Aktīvu pārdošana (peļņa/zaudējumi)",{"v":300,"d":"300.00"},{"v":450,"d":"450.00"},{"$f":"Ienākumi[[#This Row],[Faktiskie]]-Ienākumi[[#This Row],[Plānotie]]","v":{"v":150,"d":"150.00"}}]
["Ienākumu kopsumma",{"$f":"SUBTOTAL(109,Ienākumi[Plānotie])","v":{"v":63300,"d":"63,300.00"}},{"$f":"SUBTOTAL(109,Ienākumi[Faktiskie])","v":{"v":57450,"d":"57,450.00"}},{"$f":"SUBTOTAL(109,Ienākumi[Starpība])","v":{"v":-5850,"d":"-5,850.00 "}}]

{"sheet":"Personāla izdevumi","index":2,"n_rows":18,"n_cols":4,"rows_kept":18}
["Uzņēmuma nosaukums",null,null,"Datums"]
["Personāla izdevumi"]
["Izdevumi","Plānotie","Faktiskie","Starpība"]
["Alga",{"v":9500,"d":"9,500.00"},{"v":9600,"d":"9,600.00"},{"$f":"PersonālaIzdevumi[[#This Row],[Plānotie]]-PersonālaIzdevumi[[#This Row],[Faktiskie]]","v":{"v":-100,"d":"-100.00 "}}]
["Darbinieku ieguvumi",{"v":4000,"d":"4,000.00"},{"v":0,"d":"0.00"},{"$f":"PersonālaIzdevumi[[#This Row],[Plānotie]]-PersonālaIzdevumi[[#This Row],[Faktiskie]]","v":{"v":4000,"d":"4,000.00"}}]
["Komisija",{"v":5000,"d":"5,000.00"},{"v":4500,"d":"4,500.00"},{"$f":"PersonālaIzdevumi[[#This Row],[Plānotie]]-PersonālaIzdevumi[[#This Row],[Faktiskie]]","v":{"v":500,"d":"500.00"}}]
["Personāla kopējie izdevumi",{"$f":"SUBTOTAL(109,PersonālaIzdevumi[Plānotie])","v":{"v":18500,"d":"18,500.00"}},{"$f":"SUBTOTAL(109,PersonālaIzdevumi[Faktiskie])","v":{"v":14100,"d":"14,100.00"}},{"$f":"SUBTOTAL(109,PersonālaIzdevumi[Starpība])","v":{"v":4400,"d":"4,400.00"}}]
{"$rows_empty":10}
[{"$nulls":3}," "]

{"sheet":"Saimnieciskās darbības izdevumi","index":3,"n_rows":24,"n_cols":9,"rows_kept":24}
[" Uzņēmuma nosaukums",null,null,"Datums"]
["Saimnieciskās darbības izdevumi"]
["Izdevumi","Plānotie","Faktiskie","Starpība"]
["Reklamēšana",{"v":3000,"d":"3,000.00"},{"v":2500,"d":"2,500.00"},{"$f":"SaimnieciskāsDarbībasIzdevumi[[#This Row],[Plānotie]]-SaimnieciskāsDarbībasIzdevumi[[#This Row],[Faktiskie]]","v":{"v":500,"d":"500.00"}}]
["Bezcerīgie parādi",{"v":2000,"d":"2,000.00"},{"v":2000,"d":"2,000.00"},{"$f":"SaimnieciskāsDarbībasIzdevumi[[#This Row],[Plānotie]]-SaimnieciskāsDarbībasIzdevumi[[#This Row],[Faktiskie]]","v":{"v":0,"d":"0.00"}}]
["Termiņatlaides",{"v":1500,"d":"1,500.00"},{"v":2175,"d":"2,175.00"},{"$f":"SaimnieciskāsDarbībasIzdevumi[[#This Row],[Plānotie]]-SaimnieciskāsDarbībasIzdevumi[[#This Row],[Faktiskie]]","v":{"v":-675,"d":"-675.00 "}}]
["Piegādes izmaksas",{"v":2000,"d":"2,000.00"},{"v":1500,"d":"1,500.00"},{"$f":"SaimnieciskāsDarbībasIzdevumi[[#This Row],[Plānotie]]-SaimnieciskāsDarbībasIzdevumi[[#This Row],[Faktiskie]]","v":{"v":500,"d":"500.00"}}]
["Nolietojums",{"v":1000,"d":"1,000.00"},{"v":1000,"d":"1,000.00"},{"$f":"SaimnieciskāsDarbībasIzdevumi[[#This Row],[Plānotie]]-SaimnieciskāsDarbībasIzdevumi[[#This Row],[Faktiskie]]","v":{"v":0,"d":"0.00"}}]
["Veicamie maksājumi un abonementi",{"v":500,"d":"500.00"},{"v":525,"d":"525.00"},{"$f":"SaimnieciskāsDarbībasIzdevumi[[#This Row],[Plānotie]]-SaimnieciskāsDarbībasIzdevumi[[#This Row],[Faktiskie]]","v":{"v":-25,"d":"-25.00 "}}]
["Apdrošināšana",{"v":1300,"d":"1,300.00"},{"v":1275,"d":"1,275.00"},{"$f":"SaimnieciskāsDarbībasIzdevumi[[#This Row],[Plānotie]]-SaimnieciskāsDarbībasIzdevumi[[#This Row],[Faktiskie]]","v":{"v":25,"d":"25.00"}}]
["Procenti",{"v":2000,"d":"2,000.00"},{"v":2200,"d":"2,200.00"},{"$f":"SaimnieciskāsDarbībasIzdevumi[[#This Row],[Plānotie]]-SaimnieciskāsDarbībasIzdevumi[[#This Row],[Faktiskie]]","v":{"v":-200,"d":"-200.00 "}}]
["Juridiskie pakalpojumi un auditēšana",{"v":1000,"d":"1,000.00"},{"v":800,"d":"800.00"},{"$f":"SaimnieciskāsDarbībasIzdevumi[[#This Row],[Plānotie]]-SaimnieciskāsDarbībasIzdevumi[[#This Row],[Faktiskie]]","v":{"v":200,"d":"200.00"}}]
["Apkope un remonts",{"v":4500,"d":"4,500.00"},{"v":4600,"d":"4,600.00"},{"$f":"SaimnieciskāsDarbībasIzdevumi[[#This Row],[Plānotie]]-SaimnieciskāsDarbībasIzdevumi[[#This Row],[Faktiskie]]","v":{"v":-100,"d":"-100.00 "}}]
["Biroja piederumi",{"v":800,"d":"800.00"},{"v":750,"d":"750.00"},{"$f":"SaimnieciskāsDarbībasIzdevumi[[#This Row],[Plānotie]]-SaimnieciskāsDarbībasIzdevumi[[#This Row],[Faktiskie]]","v":{"v":50,"d":"50.00"}}]
["Pasta izdevumi",{"v":400,"d":"400.00"},{"v":350,"d":"350.00"},{"$f":"SaimnieciskāsDarbībasIzdevumi[[#This Row],[Plānotie]]-SaimnieciskāsDarbībasIzdevumi[[#This Row],[Faktiskie]]","v":{"v":50,"d":"50.00"}}]
["Īre vai hipotekārais kredīts",{"v":4100,"d":"4,100.00"},{"v":4500,"d":"4,500.00"},{"$f":"SaimnieciskāsDarbībasIzdevumi[[#This Row],[Plānotie]]-SaimnieciskāsDarbībasIzdevumi[[#This Row],[Faktiskie]]","v":{"v":-400,"d":"-400.00 "}}]
["Pārdošana ",{"v":350,"d":"350.00"},{"v":400,"d":"400.00"},{"$f":"SaimnieciskāsDarbībasIzdevumi[[#This Row],[Plānotie]]-SaimnieciskāsDarbībasIzdevumi[[#This Row],[Faktiskie]]","v":{"v":-50,"d":"-50.00 "}}]
["Sūtīšana un uzglabāšana",{"v":900,"d":"900.00"},{"v":840,"d":"840.00"},{"$f":"SaimnieciskāsDarbībasIzdevumi[[#This Row],[Plānotie]]-SaimnieciskāsDarbībasIzdevumi[[#This Row],[Faktiskie]]","v":{"v":60,"d":"60.00"}},{"$nulls":4}," "]
["Materiāli",{"v":5000,"d":"5,000.00"},{"v":4500,"d":"4,500.00"},{"$f":"SaimnieciskāsDarbībasIzdevumi[[#This Row],[Plānotie]]-SaimnieciskāsDarbībasIzdevumi[[#This Row],[Faktiskie]]","v":{"v":500,"d":"500.00"}}]
["Nodokļi",{"v":3000,"d":"3,000.00"},{"v":3200,"d":"3,200.00"},{"$f":"SaimnieciskāsDarbībasIzdevumi[[#This Row],[Plānotie]]-SaimnieciskāsDarbībasIzdevumi[[#This Row],[Faktiskie]]","v":{"v":-200,"d":"-200.00 "}}]
["Tālrunis",{"v":250,"d":"250.00"},{"v":280,"d":"280.00"},{"$f":"SaimnieciskāsDarbībasIzdevumi[[#This Row],[Plānotie]]-SaimnieciskāsDarbībasIzdevumi[[#This Row],[Faktiskie]]","v":{"v":-30,"d":"-30.00 "}}]
["Komunālie pakalpojumi",{"v":1400,"d":"1,400.00"},{"v":1385,"d":"1,385.00"},{"$f":"SaimnieciskāsDarbībasIzdevumi[[#This Row],[Plānotie]]-SaimnieciskāsDarbībasIzdevumi[[#This Row],[Faktiskie]]","v":{"v":15,"d":"15.00"}}]
["Citi",{"v":1000,"d":"1,000.00"},{"v":750,"d":"750.00"},{"$f":"SaimnieciskāsDarbībasIzdevumi[[#This Row],[Plānotie]]-SaimnieciskāsDarbībasIzdevumi[[#This Row],[Faktiskie]]","v":{"v":250,"d":"250.00"}}]
["Saimnieciskās darbības izdevumu kopsumma",{"$f":"SUBTOTAL(109,SaimnieciskāsDarbībasIzdevumi[Plānotie])","v":{"v":36000,"d":"36,000.00"}},{"$f":"SUBTOTAL(109,SaimnieciskāsDarbībasIzdevumi[Faktiskie])","v":{"v":35530,"d":"35,530.00"}},{"$f":"SUBTOTAL(109,SaimnieciskāsDarbībasIzdevumi[Starpība])","v":{"v":470,"d":"470.00"}}]